fUSD/lending_fUSD_20251103
["ID","MTS","AMOUNT","RATE_DAILY","PERIOD"]
[392990706,1762203040455,-12139.99587657,0.00035989,3]
[392990707,1762203040464,-7193.01013343,0.0003599,3]
[392990708,1762203040476,-598.85112995,0.0003599,3]
[392990709,1762203040534,-477.80224249,0.0003599,3]
[392990711,1762203040545,-687.00000082,0.0003599,3]
[392990716,1762203040663,-1551.9062429,0.0003599,3]
[392990717,1762203040674,-104449.65390941,0.0003599,3]
[392990718,1762203040683,-72012.1605098,0.0003599,3]
[392990719,1762203040692,-500.0,0.00035994,2]
[392990720,1762203040701,-956.9,0.00035994,120]
[392990721,1762203040710,-18003.0401275,0.00035994,3]
[392990722,1762203040719,-151.0,0.00035996,14]
[392990723,1762203040727,-477.5520043,0.00035999,120]
[392990724,1762203040736,-408.1,0.00035999,14]
[392990725,1762203040745,-151.0,0.00035999,30]
[392990726,1762203040755,-200.0,0.00035999,30]
[392990727,1762203040764,-250.0,0.00035999,30]
[392990728,1762203040773,-527.71760314,0.00035999,30]
[392990729,1762203040783,-620.0,0.00035999,30]
[392990730,1762203040792,-500.0,0.00035999,30]
[392990731,1762203040801,-151.0,0.00035999,30]
[392990732,1762203040810,-500.0,0.00035999,30]
[392990733,1762203040819,-200.0,0.00035999,30]
[392990734,1762203040829,-250.0,0.00035999,30]
[392990735,1762203040838,-642.94,0.00035999,30]
[392990736,1762203040847,-500.0,0.00035999,30]
[392990737,1762203040856,-500.0,0.00035999,30]
[392990738,1762203040865,-151.0,0.00035999,30]
[392990739,1762203040873,-200.0,0.00035999,30]
[392990740,1762203040883,-250.0,0.00035999,30]
[392990741,1762203040892,-500.0,0.00035999,30]
[392990742,1762203040900,-151.0,0.00035999,30]
[392990743,1762203040910,-500.0,0.00035999,30]
[392990744,1762203040919,-200.0,0.00035999,30]
[392990745,1762203040929,-666.72878,0.00035999,30]
[392990746,1762203040937,-250.0,0.00035999,30]
[392990747,1762203040947,-500.0,0.00035999,30]
[392990748,1762203040956,-151.0,0.00035999,30]
[392990749,1762203040965,-500.0,0.00035999,30]
[392990750,1762203040974,-151.0,0.00035999,30]
[392990751,1762203040983,-200.0,0.00035999,30]
[392990752,1762203040992,-691.39774486,0.00035999,30]
[392990753,1762203041001,-250.0,0.00035999,30]
[392990754,1762203041011,-160.0,0.00035999,30]
[392990755,1762203041020,-500.0,0.00035999,30]
[392990756,1762203041029,-151.0,0.00035999,30]
[392990757,1762203041039,-156.587,0.00035999,30]
[392990758,1762203041048,-200.0,0.00035999,30]
[392990759,1762203041061,-716.97946142,0.00035999,30]
[392990760,1762203041070,-250.0,0.00035999,30]
[392990761,1762203041079,-151.0,0.00035999,30]
[392990762,1762203041088,-160.0,0.00035999,30]
[392990763,1762203041098,-500.0,0.00035999,30]
[392990764,1762203041107,-151.0,0.00035999,30]
[392990765,1762203041116,-162.380719,0.00035999,30]
[392990766,1762203041124,-200.0,0.00035999,30]
[392990767,1762203041134,-743.50770149,0.00035999,30]
[392990768,1762203041143,-250.0,0.00035999,30]
[392990769,1762203041153,-151.0,0.00035999,30]
[392990770,1762203041162,-160.0,0.00035999,30]
[392990771,1762203041171,-500.0,0.00035999,30]
[392990772,1762203041181,-151.0,0.00035999,30]
[392990773,1762203041191,-168.3888056,0.00035999,30]
[392990774,1762203041200,-771.01748645,0.00035999,30]
[392990775,1762203041209,-250.0,0.00035999,30]
[392990776,1762203041219,-151.0,0.00035999,30]
[392990777,1762203041229,-500.0,0.00035999,30]
[392990778,1762203041238,-160.0,0.00035999,30]
[392990779,1762203041247,-414.0,0.00035999,30]
[392990780,1762203041257,-500.0,0.00035999,30]
[392990781,1762203041266,-6888.0,0.00035999,30]
[392990782,1762203041275,-151.0,0.00035999,30]
[392990783,1762203041284,-174.61919141,0.00035999,30]
[392990784,1762203041293,-799.54513345,0.00035999,30]
[392990785,1762203041302,-250.0,0.00035999,30]
[392990786,1762203041312,-151.0,0.00035999,30]
[392990787,1762203041321,-500.0,0.00035999,30]
[392990788,1762203041330,-160.0,0.00035999,30]
[392990789,1762203041340,-429.318,0.00035999,30]
[392990790,1762203041349,-500.0,0.00035999,30]
[392990791,1762203041358,-3589.32005358,0.00035999,30]
[392990792,1762203041368,-151.0,0.00035999,30]
[392990793,1762203041377,-550.41960747,0.00035999,30]
[392990794,1762203041386,-250.0,0.00035999,30]
[392990795,1762203041396,-151.0,0.00035999,30]
[392990796,1762203041405,-181.08010149,0.00035999,30]
[392990797,1762203041415,-500.0,0.00035999,30]
[392990798,1762203041425,-445.202766,0.00035999,30]
[392990799,1762203041435,-160.0,0.00035999,30]
[392990800,1762203041444,-500.0,0.00035999,30]
[392990801,1762203041454,-151.0,0.00035999,30]
[392990802,1762203041464,-250.0,0.00035999,30]
[392990803,1762203041473,-151.0,0.00035999,30]
[392990804,1762203041482,-205.84028205,0.00035999,30]
[392990805,1762203041492,-500.0,0.00035999,30]
[392990806,1762203041501,-461.67526834,0.00035999,30]
[392990807,1762203041513,-164.39279166,0.00035999,30]
[392990808,1762203041523,-500.0,0.00035999,30]
[392990809,1762203041532,-151.0,0.00035999,30]
[392990810,1762203041542,-151.0,0.00035999,30]
[392990811,1762203041551,-250.0,0.00035999,30]
[392990812,1762203041560,-151.0,0.00035999,30]
[392990813,1762203041569,-500.0,0.00035999,30]
[392990814,1762203041579,-478.75725327,0.00035999,30]
[392990815,1762203041588,-151.0,0.00035999,30]
[392990816,1762203041598,-500.0,0.00035999,30]
[392990817,1762203041607,-151.0,0.00035999,30]
[392990818,1762203041616,-250.0,0.00035999,30]
[392990819,1762203041625,-151.0,0.00035999,30]
[392990820,1762203041635,-500.0,0.00035999,30]
[392990821,1762203041645,-496.47127164,0.00035999,30]
[392990822,1762203041653,-500.0,0.00035999,30]
[392990823,1762203041662,-151.0,0.00035999,30]
[392990824,1762203041671,-151.0,0.00035999,30]
[392990825,1762203041681,-250.0,0.00035999,30]
[392990826,1762203041690,-151.0,0.00035999,30]
[392990827,1762203041699,-500.0,0.00035999,30]
[392990828,1762203041708,-514.84070869,0.00035999,30]
[392990829,1762203041717,-500.0,0.00035999,30]
[392990830,1762203041725,-151.0,0.00035999,30]
[392990831,1762203041735,-151.0,0.00035999,30]
[392990832,1762203041743,-250.0,0.00035999,30]
[392990833,1762203041753,-151.0,0.00035999,30]
[392990834,1762203041764,-500.0,0.00035999,30]
[392990835,1762203041773,-533.88981491,0.00035999,30]
[392990836,1762203041782,-500.0,0.00035999,30]
[392990837,1762203041791,-151.0,0.00035999,30]
[392990838,1762203041801,-250.0,0.00035999,30]
[392990839,1762203041810,-151.0,0.00035999,30]
[392990840,1762203041819,-151.0,0.00035999,30]
[392990841,1762203041828,-500.0,0.00035999,30]
[392990842,1762203041837,-500.0,0.00035999,30]
[392990843,1762203041846,-553.64373807,0.00035999,30]
[392990844,1762203041855,-151.0,0.00035999,30]
[392990845,1762203041864,-500.0,0.00035999,30]
[392990846,1762203041873,-250.0,0.00035999,30]
[392990847,1762203041882,-151.0,0.00035999,30]
[392990848,1762203041892,-151.0,0.00035999,30]
[392990849,1762203041901,-250.0,0.00035999,30]
[392990850,1762203041911,-500.0,0.00035999,30]
[392990851,1762203041920,-500.0,0.00035999,30]
[392990852,1762203041929,-574.12855637,0.00035999,30]
[392990853,1762203041938,-151.0,0.00035999,30]
[392990854,1762203041947,-500.0,0.00035999,30]
[392990855,1762203041957,-250.0,0.00035999,30]
[392990856,1762203041965,-151.0,0.00035999,30]
[392990857,1762203041974,-151.0,0.00035999,30]
[392990858,1762203041983,-250.0,0.00035999,30]
[392990859,1762203041992,-500.0,0.00035999,30]
[392990860,1762203042000,-500.0,0.00035999,30]
[392990861,1762203042014,-595.37131296,0.00035999,30]
[392990862,1762203042023,-500.0,0.00035999,30]
[392990863,1762203042032,-151.0,0.00035999,30]
[392990864,1762203042041,-250.0,0.00035999,30]
[392990865,1762203042051,-151.0,0.00035999,30]
[392990866,1762203042064,-250.0,0.00035999,30]
[392990867,1762203042075,-151.0,0.00035999,30]
[392990868,1762203042084,-500.0,0.00035999,30]
[392990869,1762203042094,-617.40005154,0.00035999,30]
[392990870,1762203042104,-500.0,0.00035999,30]
[392990871,1762203042113,-500.0,0.00035999,30]
[392990872,1762203042123,-151.0,0.00035999,30]
[392990873,1762203042132,-250.0,0.00035999,30]
[392990874,1762203042143,-151.0,0.00035999,30]
[392990875,1762203042153,-250.0,0.00035999,30]
[392990876,1762203042163,-151.0,0.00035999,30]
[392990877,1762203042173,-151.0,0.00035999,30]
[392990878,1762203042182,-640.24385345,0.00035999,30]
[392990879,1762203042192,-500.0,0.00035999,30]
[392990880,1762203042202,-500.0,0.00035999,30]
[392990881,1762203042211,-153.79578297,0.00035999,30]
[392990882,1762203042221,-500.0,0.00035999,30]
[392990883,1762203042230,-151.0,0.00035999,30]
[392990884,1762203042239,-250.0,0.00035999,30]
[392990885,1762203042249,-663.93287602,0.00035999,30]
[392990886,1762203042266,-500.0,0.00035999,30]
[392990887,1762203042276,-500.0,0.00035999,30]
[392990888,1762203042285,-151.0,0.00035999,30]
[392990889,1762203042465,-151.0,0.00035999,30]
[392990890,1762203042475,-250.0,0.00035999,30]
[392990891,1762203042484,-688.49839244,0.00035999,30]
[392990892,1762203042493,-500.0,0.00035999,30]
[392990893,1762203042503,-254.80682989,0.00035999,30]
[392990894,1762203042519,-500.0,0.00035999,30]
[392990895,1762203042528,-151.0,0.00035999,30]
[392990896,1762203042538,-250.0,0.00035999,30]
[392990897,1762203042547,-713.97283296,0.00035999,30]
[392990898,1762203042556,-500.0,0.00035999,30]
[392990899,1762203042566,-151.0,0.00035999,30]
[392990900,1762203042575,-250.0,0.00035999,30]
[392990901,1762203042585,-740.38982778,0.00035999,30]
[392990902,1762203042594,-500.0,0.00035999,30]
[392990903,1762203042604,-151.0,0.00035999,30]
[392990904,1762203042614,-220.0,0.00035999,30]
[392990905,1762203042623,-250.0,0.00035999,30]
[392990906,1762203042632,-767.7842514,0.00035999,30]
[392990907,1762203042642,-500.0,0.00035999,30]
[392990908,1762203042653,-520.0,0.00035999,30]
[392990909,1762203042663,-300.0,0.00035999,30]
[392990910,1762203042672,-220.0,0.00035999,30]
[392990911,1762203042681,-250.0,0.00035999,30]
[392990912,1762203042691,-796.19226871,0.00035999,30]
[392990913,1762203042701,-500.0,0.00035999,30]
[392990914,1762203042711,-539.24,0.00035999,30]
[392990915,1762203042720,-311.1,0.00035999,30]
[392990916,1762203042730,-221.10337309,0.00035999,30]
[392990917,1762203042740,-250.0,0.00035999,30]
[392990918,1762203042749,-500.0,0.00035999,30]
[392990919,1762203042761,-559.19188,0.00035999,30]
[392990920,1762203042771,-825.65138265,0.00035999,30]
[392990921,1762203042780,-500.0,0.00035999,30]
[392990922,1762203042790,-322.6107,0.00035999,30]
[392990923,1762203042800,-250.0,0.00035999,30]
[392990924,1762203042810,-331.0116582,0.00035999,10]
[392990925,1762203042819,-500.0,0.00035999,30]
[392990926,1762203042828,-500.0,0.00035999,30]
[392990927,1762203042838,-579.88197956,0.00035999,30]
[392990928,1762203042847,-334.5472959,0.00035999,30]
[392990929,1762203042858,-250.0,0.00035999,30]
[392990930,1762203042866,-500.0,0.00035999,30]
[392990931,1762203042875,-500.0,0.00035999,30]
[392990932,1762203042885,-601.3376128,0.00035999,30]
[392990933,1762203042894,-346.92554585,0.00035999,30]
[392990934,1762203042903,-250.0,0.00035999,30]
[392990935,1762203042912,-500.0,0.00035999,30]
[392990936,1762203042922,-500.0,0.00035999,30]
[392990937,1762203042931,-623.58710448,0.00035999,30]
[392990939,1762203042940,-359.76179104,0.00035999,30]
[392990940,1762203042949,-250.0,0.00035999,30]
[392990941,1762203042959,-500.0,0.00035999,30]
[392990942,1762203042968,-500.0,0.00035999,30]
[392990943,1762203042977,-322.6107,0.00035999,10]
[392990944,1762203042986,-646.65982734,0.00035999,30]
[392990945,1762203042995,-373.07297731,0.00035999,30]
[392990946,1762203043007,-250.0,0.00035999,30]
[392990948,1762203043017,-500.0,0.00035999,30]
[392990949,1762203043026,-379.2893,0.00035999,10]
[392990950,1762203043035,-411.05975929,0.00035999,30]
[392990951,1762203043045,-386.87667747,0.00035999,30]
[392990953,1762203043059,-250.0,0.00035999,30]
[392990955,1762203043069,-500.0,0.00035999,30]
[392990956,1762203043079,-401.19111454,0.00035999,30]
[392990957,1762203043088,-250.0,0.00035999,30]
[392990958,1762203043098,-500.0,0.00035999,30]
[392990959,1762203043107,-151.0,0.00035999,30]
[392990960,1762203043117,-416.03518578,0.00035999,30]
[392990961,1762203043128,-250.0,0.00035999,30]
[392990962,1762203043138,-500.0,0.00035999,30]
[392990964,1762203043147,-156.587,0.00035999,30]
[392990965,1762203043157,-250.0,0.00035999,30]
[392990966,1762203043166,-200.0,0.00035999,30]
[392990967,1762203043175,-431.42848765,0.00035999,30]
[392990968,1762203043184,-162.380719,0.00035999,30]
[392990969,1762203043193,-200.0,0.00035999,30]
[392990970,1762203043202,-447.3913417,0.00035999,30]
[392990971,1762203043211,-168.3888056,0.00035999,30]
[392990972,1762203043220,-500.0,0.00035999,30]
[392990973,1762203043229,-200.0,0.00035999,30]
[392990974,1762203043238,-463.94482134,0.00035999,30]
[392990975,1762203043247,-174.61919141,0.00035999,30]
[392990976,1762203043258,-500.0,0.00035999,30]
[392990977,1762203043268,-200.0,0.00035999,30]
[392990978,1762203043278,-481.11077973,0.00035999,30]
[392990979,1762203043287,-181.08010149,0.00035999,30]
[392990980,1762203043296,-500.0,0.00035999,30]
[392990981,1762203043306,-200.0,0.00035999,30]
[392990982,1762203043316,-498.91187858,0.00035999,30]
[392990983,1762203043326,-187.78006525,0.00035999,30]
[392990984,1762203043335,-250.0,0.00035999,30]
[392990985,1762203043344,-500.0,0.00035999,30]
[392990986,1762203043353,-517.37161808,0.00035999,30]
[392990987,1762203043363,-200.0,0.00035999,30]
[392990988,1762203043372,-151.0,0.00035999,30]
[392990989,1762203043381,-194.72792766,0.00035999,30]
[392990990,1762203043391,-250.0,0.00035999,30]
[392990991,1762203043400,-500.0,0.00035999,30]
[392990992,1762203043409,-536.51436795,0.00035999,30]
[392990993,1762203043419,-151.0,0.00035999,30]
[392990994,1762203043428,-200.0,0.00035999,30]
[392990995,1762203043437,-201.93286099,0.00035999,30]
[392990996,1762203043446,-250.0,0.00035999,30]
[392990997,1762203043455,-556.36539957,0.00035999,30]
[392990998,1762203043465,-151.0,0.00035999,30]
[392990999,1762203043475,-298.00667974,0.00035999,30]
[392991000,1762203043483,-250.0,0.00035999,30]
[392991001,1762203043493,-500.0,0.00035999,30]
[392991002,1762203043502,-576.95091935,0.00035999,30]
[392991003,1762203043514,-151.0,0.00035999,30]
[392991004,1762203043525,-250.0,0.00035999,30]
[392991005,1762203043534,-500.0,0.00035999,30]
[392991006,1762203043544,-598.29810337,0.00035999,30]
[392991008,1762203043553,-151.0,0.00035999,30]
[392991010,1762203043563,-250.0,0.00035999,30]
[392991011,1762203043573,-500.0,0.00035999,30]
[392991012,1762203043582,-151.0,0.00035999,30]
[392991013,1762203043591,-250.0,0.00035999,30]
[392991014,1762203043600,-500.0,0.00035999,30]
[392991015,1762203043610,-250.0,0.00035999,30]
[392991016,1762203043619,-151.0,0.00035999,30]
[392991017,1762203043629,-151.0,0.00035999,30]
[392991018,1762203043638,-500.0,0.00035999,30]
[392991019,1762203043647,-250.0,0.00035999,30]
[392991020,1762203043657,-151.0,0.00035999,30]
[392991021,1762203043666,-151.0,0.00035999,30]
[392991022,1762203043675,-151.0,0.00035999,30]
[392991024,1762203043685,-500.0,0.00035999,30]
[392991025,1762203043694,-250.0,0.00035999,30]
[392991026,1762203043704,-159.05669492,0.00035999,30]
[392991027,1762203043714,-156.587,0.00035999,30]
[392991028,1762203043722,-151.0,0.00035999,30]
[392991029,1762203043731,-500.0,0.00035999,30]
[392991030,1762203043741,-250.0,0.00035999,30]
[392991031,1762203043750,-250.0,0.00035999,30]
[392991032,1762203043762,-162.380719,0.00035999,30]
[392991033,1762203043772,-151.0,0.00035999,30]
[392991034,1762203043782,-500.0,0.00035999,30]
[392991035,1762203043791,-250.0,0.00035999,30]
[392991036,1762203043801,-168.3888056,0.00035999,30]
[392991037,1762203043810,-573.33175578,0.00035999,30]
[392991038,1762203043819,-250.0,0.00035999,30]
[392991039,1762203043828,-250.0,0.00035999,30]
[392991040,1762203043838,-151.0,0.00035999,30]
[392991041,1762203043847,-174.61919141,0.00035999,30]
[392991042,1762203043856,-250.0,0.00035999,30]
[392991043,1762203043865,-250.0,0.00035999,30]
[392991044,1762203043874,-151.0,0.00035999,30]
[392991045,1762203043883,-181.08010149,0.00035999,30]
[392991046,1762203043892,-250.0,0.00035999,30]
[392991047,1762203043902,-250.0,0.00035999,30]
[392991048,1762203043911,-152.30214979,0.00035999,30]
[392991049,1762203043921,-187.78006525,0.00035999,30]
[392991050,1762203043930,-250.0,0.00035999,30]
[392991051,1762203043938,-250.0,0.00035999,30]
[392991052,1762203043948,-194.72792766,0.00035999,30]
[392991053,1762203043956,-250.0,0.00035999,30]
[392991054,1762203043965,-250.0,0.00035999,30]
[392991055,1762203043975,-201.93286099,0.00035999,30]
[392991056,1762203043984,-180.65959416,0.00035999,30]
[392991057,1762203043993,-250.0,0.00035999,30]
[392991058,1762203044002,-250.0,0.00035999,30]
[392991059,1762203044014,-320.95965356,0.00035999,30]
[392991060,1762203044023,-250.0,0.00035999,30]
[392991061,1762203044031,-250.0,0.00035999,30]
[392991062,1762203044041,-250.0,0.00035999,30]
[392991063,1762203044050,-250.0,0.00035999,30]
[392991064,1762203044062,-250.0,0.00035999,30]
[392991065,1762203044071,-250.0,0.00035999,30]
[392991066,1762203044080,-250.0,0.00035999,30]
[392991067,1762203044089,-250.0,0.00035999,30]
[392991068,1762203044099,-200.0,0.00035999,30]
[392991069,1762203044108,-250.0,0.00035999,30]
[392991070,1762203044117,-207.4,0.00035999,30]
[392991071,1762203044126,-250.0,0.00035999,30]
[392991072,1762203044136,-215.0738,0.00035999,30]
[392991073,1762203044146,-250.0,0.00035999,30]
[392991074,1762203044155,-223.0315306,0.00035999,30]
[392991075,1762203044164,-250.0,0.00035999,30]
[392991076,1762203044173,-172.38566003,0.00035999,30]
[392991077,1762203044183,-250.0,0.00035999,30]
[392991078,1762203044192,-250.0,0.00035999,30]
[392991079,1762203044202,-250.0,0.00035999,30]
[392991080,1762203044211,-277.35679052,0.00035999,10]
[392991081,1762203044220,-287.61899177,0.00035999,10]
[392991082,1762203044229,-298.26089446,0.00035999,10]
[392991083,1762203044238,-309.29654756,0.00035999,10]
[392991084,1762203044246,-320.74051982,0.00035999,10]
[392991085,1762203044257,-332.60791905,0.00035999,10]
[392991086,1762203044266,-344.91441206,0.00035999,10]
[392991087,1762203044275,-467.82229722,0.00035999,10]
[392991088,1762203044284,-500.0,0.00035999,30]
[392991089,1762203044294,-518.5,0.00035999,30]
[392991090,1762203044302,-537.6845,0.00035999,30]
[392991091,1762203044312,-557.5788265,0.00035999,30]
[392991092,1762203044322,-578.20924308,0.00035999,30]
[392991093,1762203044331,-599.60298507,0.00035999,30]
[392991094,1762203044341,-621.78829552,0.00035999,30]
[392991095,1762203044350,-644.79446246,0.00035999,30]
[392991096,1762203044359,-668.65185757,0.00035999,30]
[392991097,1762203044368,-273.11467366,0.00035999,30]
[392991098,1762203044379,-956.9,0.00035999,120]
[392991099,1762203044389,-1700.0,0.00036,13]
[392991100,1762203044398,-125621.65459416,0.00036,2]
[392991101,1762203044438,-162.75126589,0.00036,2]
[392991102,1762203044454,-511.87051959,0.00036,2]
[392991103,1762203044465,-543.68648683,0.00036,2]
[392991104,1762203044477,-1719.3985112,0.00036,2]
[392991105,1762203045515,-368.8,0.00036,2]
[392991106,1762203045562,-5346.5,0.00036,2]
[392991107,1762203045679,-25.84190341,0.00036,2]
[392991108,1762203045798,-7820.56260936,0.00036,2]
[392991109,1762203045807,-50167.75451447,0.00036,6]
[392991110,1762203045817,-10698.15125047,0.00036,2]
[392991111,1762203045826,-264.8026421,0.00036,2]
[392991112,1762203045835,-1000.0,0.00036,16]
[392991113,1762203045844,-1000.0,0.00036,15]
[392991114,1762203045853,-1000.0,0.00036,15]
[392991115,1762203045862,-1000.0,0.00036,12]
[392991116,1762203045871,-1000.0,0.00036,12]
[392991117,1762203045880,-1000.0,0.00036,12]
[392991118,1762203045888,-765.40233,0.00036,10]
[392991119,1762203045897,-200.0,0.00036,2]
[392991120,1762203045906,-4822.29109,0.00036,2]
[392991121,1762203045914,-1231.44758209,0.00036,2]
[392991122,1762203045923,-200.0,0.00036,2]
[392991123,1762203045931,-150.0,0.00036,7]
[392991124,1762203045940,-18018.62,0.00036004,2]
[392991125,1762203045949,-1118.62634648,0.00036013,2]
[392991126,1762203045958,-3220.37634949,0.00036024,8]
[392991127,1762203045968,-166.66,0.00036059,30]
[392991142,1762203046201,-2600.0,0.000361,13]
[392991143,1762203046212,-4038.02231654,0.00036102,2]
[392991144,1762203046221,-500.0,0.0003612,30]
[392991145,1762203046231,-1118.62634648,0.00036131,2]
[392991146,1762203046240,-168.0,0.00036153,7]
[392991147,1762203046248,-428.77426768,0.00036164,120]
[392991148,1762203046257,-165.01181061,0.00036165,15]
[392991149,1762203046267,-3500.0,0.000362,13]
[392991150,1762203046276,-150.32,0.00036219,2]
[392991151,1762203046285,-300.0,0.00036219,2]
[392991152,1762203046293,-1118.62634648,0.0003625,2]
[392991153,1762203046302,-18003.0401275,0.00036272,3]
[392991154,1762203046312,-408.1,0.00036273,14]
[392991155,1762203046321,-4038.02231654,0.00036274,2]
[392991156,1762203046330,-28739.5559147,0.00036282,3]
[392991157,1762203046339,-1635.63,0.00036292,2]
[392991158,1762203046348,-168.0,0.00036295,2]
[392991159,1762203046358,-4400.0,0.000363,13]
[392991160,1762203046367,-1425.0,0.00036312,2]
[392991161,1762203046376,-150.0,0.00036319,7]
[392991162,1762203046385,-200.0,0.0003636,2]
[392991163,1762203046394,-200.0,0.0003636,2]
[392991164,1762203046403,-1118.62634648,0.00036368,2]
[392991165,1762203046412,-168.0,0.00036385,2]
[392991167,1762203046421,-800.0,0.000364,13]
[392991168,1762203046430,-168.0,0.00036415,2]
[392991169,1762203046439,-165.01181061,0.0003643,15]
[392991170,1762203046449,-4038.02231654,0.00036446,2]
[392991171,1762203046458,-168.0,0.00036477,2]
[392991172,1762203046468,-1118.62634648,0.00036487,2]
[392991173,1762203046477,-800.0,0.000365,13]
[392991175,1762203046488,-500.0,0.00036521,5]
[392991176,1762203046505,-1239.0,0.00036524,7]
[392991177,1762203046514,-152.0,0.00036524,7]
[392991178,1762203046524,-152.0,0.00036524,7]
[392991179,1762203046533,-152.0,0.00036524,7]
[392991180,1762203046542,-152.0,0.00036524,7]
[392991181,1762203046551,-1239.0,0.00036524,7]
[392991182,1762203046560,-825.0,0.00036524,7]
[392991183,1762203046569,-152.0,0.00036524,7]
[392991184,1762203046578,-1239.0,0.00036524,7]
[392991185,1762203046587,-825.0,0.00036524,7]
[392991186,1762203046596,-152.0,0.00036524,7]
[392991187,1762203046605,-1239.0,0.00036524,7]
[392991188,1762203046614,-222.08276422,0.00036524,7]
[392991189,1762203046623,-152.0,0.00036524,7]
[392991190,1762203046632,-1239.0,0.00036524,7]
[392991191,1762203046641,-152.0,0.00036524,7]
[392991194,1762203046650,-1239.0,0.00036524,7]
[392991196,1762203046658,-152.0,0.00036524,7]
[392991198,1762203046667,-1239.0,0.00036524,7]
[392991200,1762203046676,-220.10412224,0.00036524,7]
[392991202,1762203046685,-1239.0,0.00036524,7]
[392991205,1762203046693,-1239.0,0.00036524,7]
[392991207,1762203046702,-152.0,0.00036524,7]
[392991209,1762203046711,-1239.0,0.00036524,7]
[392991210,1762203046720,-1239.0,0.00036524,7]
[392991212,1762203046729,-1226.27,0.00036524,2]
[392991214,1762203046739,-905.0,0.00036524,2]
[392991216,1762203046753,-408.1,0.00036547,14]
[392991218,1762203046769,-166.66,0.00036582,2]
[392991220,1762203046778,-5960.0,0.00036598,5]
[392991222,1762203046787,-800.0,0.000366,13]
[392991224,1762203046796,-1118.62634648,0.00036605,2]
[392991226,1762203046805,-4038.02231654,0.00036617,2]
[392991228,1762203046814,-300.0,0.00036637,2]
[392991230,1762203046822,-1425.0,0.00036638,2]
[392991232,1762203046831,-168.0,0.00036667,2]
[392991234,1762203046840,-1425.0,0.00036669,2]
[392991235,1762203046849,-267.59,0.0003667,120]
[392991236,1762203046858,-165.01181061,0.00036696,15]
[392991237,1762203046867,-800.0,0.000367,13]
[392991238,1762203046875,-1118.62634648,0.00036724,2]
[392991239,1762203046884,-200.0,0.00036724,2]
[392991240,1762203046893,-496.0,0.00036741,7]
[392991241,1762203046902,-200.0,0.0003675,10]
[392991242,1762203046911,-166.66,0.00036759,30]
[392991243,1762203046920,-4038.02231654,0.00036789,2]
[392991244,1762203046929,-1425.0,0.00036797,2]
[392991245,1762203046938,-18003.0401275,0.00036797,4]
[392991246,1762203046947,-1586.37458285,0.000368,2]
[392991247,1762203046957,-1519.0,0.000368,13]
[392991248,1762203046967,-956.9,0.000368,120]
[392991249,1762203046976,-1425.0,0.00036807,2]
[392991250,1762203046985,-28739.5559147,0.00036809,4]
[392991251,1762203046994,-196.31414602,0.0003681,2]
[392991252,1762203047003,-1425.0,0.00036814,2]
[392991253,1762203047014,-18003.0401275,0.00036821,4]
[392991254,1762203047023,-408.1,0.00036821,14]
[392991255,1762203047032,-1425.0,0.00036821,2]
[392991256,1762203047041,-1425.0,0.00036828,2]